bitfinex-derivatives/quotes_ETHF0:USTF0_20250616
["timestamp","ask_amount","ask_price","bid_price","bid_amount"]
[1750069134431,0.76033,2630.3,2630.2,6.06706481]
[1750069135317,0.76033,2630.3,2630.2,6.82739481]
[1750069137332,0.76033,2630.3,2630.2,6.06706481]
[1750069138937,0.76033,2630.3,2630.2,7.57637678]
[1750069139440,0.76033,2630.3,2630.2,6.06706481]
[1750069140041,0.76033,2630.3,2630.2,6.82738481]
[1750069140340,0.76033,2630.3,2630.2,6.06706481]
[1750069140541,0.76033,2630.3,2630.2,7.57595782]
[1750069141043,0.76033,2630.3,2630.2,6.82738481]
[1750069141535,0.76033,2630.3,2630.2,2.85926481]
[1750069141740,0.76033,2630.3,2630.2,6.06706481]
[1750069142039,0.76033,2630.3,2630.2,4.71679467]
[1750069142239,0.76033,2630.3,2630.2,1.50899467]
[1750069142544,0.76032,2630.2,2630.1,1.50899467]
[1750069142835,0.76035,2630.1,2630.0,2.26556511]
[1750069143041,10.45171481,2630.1,2630.0,1.50973554]
[1750069143239,0.76038,2630.0,2629.9,4.71753554]
[1750069143546,25.51328,2630.0,2629.9,4.71753554]
[1750069144643,25.51328,2630.0,2629.9,4.34069931]
[1750069145035,25.51328,2630.0,2629.9,3.2078]
[1750069145437,31.67728,2630.0,2629.9,3.2078]
[1750069147652,31.67728,2630.0,2629.8,1.13859894]
[1750069147653,0.76041,2629.9,2629.8,1.13859894]
[1750069147950,2.02101,2629.9,2629.8,1.13859894]
[1750069148452,0.06737406,2630.3,2630.2,0.76032]
[1750069148748,3.02637421,2630.9,2630.6,0.7602]
[1750069148749,0.76013,2630.9,2630.6,0.7602]
[1750069148947,24.16069963,2631.0,2630.8,3.2078]
[1750069149138,25.42129963,2631.0,2630.8,4.33942457]
[1750069149343,0.76012,2630.9,2630.8,3.2078]
[1750069149538,0.76015,2630.8,2630.7,1.13162457]
[1750069149746,0.76015,2630.8,2630.6,1.50883277]
[1750069149747,0.76018,2630.7,2630.6,1.13162457]
[1750069149943,0.76018,2630.7,2630.5,1.13162457]
[1750069149944,0.76021,2630.6,2630.5,1.13162457]
[1750069150143,3.61947481,2630.6,2630.5,1.13162457]
[1750069150352,0.76024,2630.5,2630.4,1.13162457]
[1750069150645,1.346,2630.5,2630.2,1.13162457]
[1750069150847,0.7603,2630.3,2630.2,1.13162457]
[1750069151047,6.9263,2630.3,2630.2,1.13162457]
[1750069151249,8.33967406,2630.3,2630.2,1.13162457]
[1750069151447,7.57937406,2630.3,2630.2,1.89194457]
[1750069151951,7.57937406,2630.3,2630.2,0.76032]
[1750069152251,6.23337406,2630.3,2630.2,0.76032]
[1750069152451,6.99367406,2630.3,2630.1,6.13766277]
[1750069152850,6.23337406,2630.3,2630.1,5.37733277]
[1750069153052,8.33968406,2630.3,2630.2,1.1317238]
[1750069154048,8.33968406,2630.3,2630.2,1.1317122]
[1750069155651,8.33968406,2630.3,2630.2,1.8920322]
[1750069155850,0.06737406,2630.3,2630.2,5.76032]
[1750069156155,29.167,2631.6,2631.0,1.90019]
[1750069156358,30.4753,2631.6,2631.5,0.75995]
[1750069156652,29.167,2631.6,2631.5,0.75995]
[1750069156855,6.17,2631.6,2631.5,0.75995]
[1750069157050,0.75987,2631.8,2631.6,0.7599]
[1750069157250,1.9486,2632.0,2631.4,7.19655564]
[1750069157251,30.4969,2631.7,2631.5,0.75993]
[1750069157645,30.4969,2631.7,2631.4,7.20225527]
[1750069157958,30.4969,2631.7,2631.6,0.75992]
[1750069158248,29.737,2631.7,2631.6,0.75992]
[1750069158454,30.4969,2631.7,2631.5,0.75993]
[1750069160154,0.75992,2631.6,2631.5,0.75993]
[1750069160355,31.0291,2631.7,2631.4,3.21349963]
[1750069160356,0.75995,2631.5,2631.4,3.21349963]
[1750069160553,28.46631481,2631.5,2631.4,3.21349963]
[1750069161054,28.46631481,2631.5,2631.4,0.00569963]
[1750069161255,34.60631481,2631.5,2630.8,5.09742083]
[1750069161456,0.76012,2630.9,2630.8,3.2078]
[1750069161657,24.33012,2630.9,2630.8,3.2078]
[1750069162256,23.57,2630.9,2630.8,3.96795]
[1750069163459,0.76012,2631.0,2630.8,3.2078]
[1750069163654,6.168,2631.7,2630.9,2.85926481]
[1750069163655,0.76,2631.4,2630.9,2.85926481]
[1750069163862,0.76,2631.4,2631.3,3.2078]
[1750069163863,0.75998,2631.4,2631.3,3.2078]
[1750069164055,24.32998,2631.4,2631.3,3.2078]
[1750069164355,0.76015,2630.8,2630.7,3.2078]
[1750069164567,33.35641481,2630.8,2630.7,2.95096311]
[1750069164859,30.56615,2630.8,2630.7,2.95096311]
[1750069165161,30.56615,2630.8,2630.6,0.00569963]
[1750069165162,0.76018,2630.7,2630.6,0.00569963]
[1750069165360,2.09798,2630.7,2630.6,0.00569963]
[1750069166556,5.30578,2630.7,2630.6,0.00569963]
[1750069167056,0.76018,2630.7,2630.6,0.00569963]
[1750069167256,30.55318,2630.7,2630.6,0.00569963]
[1750069168765,33.76098,2630.7,2630.6,0.00569963]
[1750069169562,33.74498,2630.7,2630.6,0.00569963]
[1750069169762,35.03848,2630.7,2630.6,0.00569963]
[1750069170359,37.89774481,2630.7,2630.6,0.00569963]
[1750069173765,35.02048,2630.7,2630.6,0.00569963]
[1750069174362,5.26148,2630.7,2630.6,0.00569963]
[1750069174568,35.02248,2630.7,2630.6,0.00569963]
[1750069175160,4.75959481,2630.9,2630.6,0.00569963]
[1750069175161,3.2078,2631.1,2630.6,0.00569963]
[1750069175463,3.2078,2631.1,2630.7,1.12781535]
[1750069175664,0.76015,2630.8,2630.7,1.12781535]
[1750069175963,0.76018,2630.7,2630.6,0.67909963]
[1750069176363,30.57218,2630.7,2630.6,0.67909963]
[1750069177666,30.63955406,2630.7,2630.6,0.67909963]
[1750069183858,30.59155406,2630.7,2630.6,0.67909963]
[1750069185771,0.82755406,2630.7,2630.6,0.67909963]
[1750069185971,30.63455406,2630.7,2630.6,0.67909963]
[1750069188280,30.63455406,2630.7,2630.6,1.80915722]
[1750069188668,30.60755406,2630.7,2630.6,1.80915722]
[1750069190274,30.60755406,2630.7,2630.6,0.67909963]
[1750069191575,30.60755406,2630.7,2630.6,1.81139357]
[1750069193275,30.60755406,2630.7,2630.6,0.67909963]
[1750069193475,30.60755406,2630.7,2630.6,1.81165912]
[1750069194280,30.60755406,2630.7,2630.6,2.18285343]
[1750069194979,30.60755406,2630.7,2630.6,1.13903075]
[1750069195372,31.89545406,2630.7,2630.6,1.13903075]
[1750069200885,31.89545406,2630.7,2630.6,0.10381451]
[1750069201087,0.76021,2630.6,2630.5,0.10381451]
[1750069201386,8.12817481,2630.6,2630.5,0.10381451]
[1750069202093,5.26891,2630.6,2630.5,0.10381451]
[1750069204280,0.76021,2630.6,2630.5,0.10381451]
[1750069204488,0.76027,2630.4,2630.3,5.03761837]
[1750069204688,24.24227,2630.4,2630.3,6.37191837]
[1750069207390,30.44227,2630.4,2630.3,6.37191837]
[1750069207592,30.44227,2630.4,2630.3,3.51265356]
[1750069209290,0.76027,2630.4,2630.3,3.51265356]
[1750069209603,30.42927,2630.4,2630.3,3.51265356]
[1750069209898,0.76027,2630.4,2630.3,3.51265356]
[1750069210293,24.21227,2630.4,2630.3,2.00889976]
[1750069210499,24.21227,2630.4,2630.3,4.26453047]
[1750069211198,0.76027,2630.4,2630.3,4.26453047]
[1750069211497,0.76027,2630.4,2630.3,5.02482047]
[1750069211797,0.76027,2630.4,2630.3,4.26453047]
[1750069215193,0.76027,2630.4,2630.3,2.93023047]
[1750069215502,0.76027,2630.4,2630.3,2.18510236]
[1750069215699,0.76027,2630.4,2630.3,0.67459976]
[1750069216401,0.76027,2630.4,2630.3,3.53386457]
[1750069216596,0.76027,2630.4,2630.3,5.04436717]
[1750069216791,30.34327,2630.4,2630.3,3.53386457]
[1750069217600,30.34327,2630.4,2630.3,4.29415457]
[1750069217903,24.20726,2630.4,2630.3,7.81538528]
[1750069219300,0.76026,2630.4,2630.3,7.81538528]
[1750069219607,24.20726,2630.4,2630.3,7.81538528]
[1750069220208,0.76026,2630.4,2630.3,7.81538528]
[1750069221508,0.82763406,2630.4,2630.3,7.81538528]
[1750069223207,0.06737406,2630.4,2630.3,7.81538528]
[1750069223411,0.00569963,2630.6,2630.5,0.76024]
[1750069223603,0.76018,2630.8,2630.7,0.76015]
[1750069223906,0.76018,2630.8,2630.7,5.88478332]
[1750069224308,0.76018,2630.8,2630.7,7.79688332]
[1750069225712,0.76018,2630.8,2630.7,3.50946481]
[1750069226007,0.76018,2630.8,2630.7,0.6502]
[1750069226403,0.76018,2630.8,2630.7,2.15950743]
[1750069228112,0.76018,2630.7,2630.6,1.50930743]
[1750069228313,27.41398,2630.7,2630.6,1.50930743]
[1750069228611,24.20618,2630.7,2630.6,2.26951743]
[1750069229008,24.20618,2630.7,2630.6,0.76021]
[1750069229211,24.20618,2630.8,2630.7,0.76016]
[1750069229413,24.20618,2630.8,2630.7,5.12810355]
[1750069229711,23.446,2630.8,2630.7,3.61944481]
[1750069229913,23.446,2630.8,2630.7,7.85331332]
[1750069231315,24.20615,2630.8,2630.7,7.85331332]
[1750069232417,24.20615,2630.8,2630.7,5.58794481]
[1750069233217,24.20615,2630.8,2630.7,4.36708476]
[1750069233718,24.20615,2630.8,2630.7,1.50781995]
[1750069234320,0.76018,2630.7,2630.6,1.50781995]
[1750069235420,0.76018,2630.7,2630.6,2.26802995]
[1750069238914,0.76018,2630.7,2630.6,1.50781995]
[1750069238915,3.96798,2630.7,2630.6,1.50781995]
[1750069239124,0.76026,2630.4,2630.3,1.51161971]
[1750069239425,33.54806,2630.4,2630.3,1.51161971]
[1750069240125,33.54806,2630.4,2630.3,2.27190971]
[1750069240930,33.54806,2630.4,2630.3,1.51161971]
[1750069241228,33.54806,2630.4,2630.3,2.27190971]
[1750069242324,33.54806,2630.4,2630.3,1.51161971]
[1750069245128,33.85295601,2630.4,2630.3,2.27190971]
[1750069245430,33.85295601,2630.4,2630.3,1.51161971]
[1750069245830,30.64515601,2630.4,2630.3,1.51161971]
[1750069246131,30.34026,2630.4,2630.3,2.27190971]
[1750069247234,0.76026,2630.4,2630.3,2.27190971]
[1750069247531,30.33926,2630.4,2630.3,2.27190971]
[1750069248225,30.33926,2630.4,2630.3,1.51161971]
[1750069248433,30.33926,2630.4,2630.3,0.00379976]
[1750069248830,31.67766,2630.4,2630.3,0.00379976]
[1750069250937,31.74503406,2630.4,2630.3,0.00379976]
[1750069253835,31.74503406,2630.4,2630.3,9.76e-06]
[1750069254143,0.76038,2630.0,2629.9,1.50781995]
[1750069254339,0.76041,2629.9,2629.8,2.13361995]
[1750069255341,0.76041,2629.9,2629.8,0.6258]
[1750069257937,0.76047,2629.7,2629.6,0.00569963]
[1750069258134,27.41327,2629.7,2629.6,0.00569963]
[1750069263848,3.96827,2629.7,2629.6,0.00569963]
[1750069264042,33.55127,2629.7,2629.6,0.00569963]
[1750069267244,33.61864406,2629.7,2629.6,0.00569963]
[1750069267641,30.41084406,2629.7,2629.6,0.00569963]
[1750069267847,33.61964406,2629.7,2629.6,0.00569963]
[1750069269246,33.55227,2629.7,2629.6,0.00569963]
[1750069270447,3.96827,2629.7,2629.6,0.00569963]
[1750069270647,33.55127,2629.7,2629.6,0.00569963]
[1750069271849,36.41053481,2629.7,2629.6,0.00569963]
[1750069272243,36.47790887,2629.7,2629.6,0.00569963]
[1750069272549,36.82120887,2629.7,2629.6,0.00569963]
[1750069273247,36.75383481,2629.7,2629.6,0.00569963]
[1750069274249,36.82120887,2629.7,2629.6,0.00569963]
[1750069276051,36.47790887,2629.7,2629.6,0.00569963]
[1750069276245,33.61864406,2629.7,2629.6,0.00569963]
[1750069276445,33.55127,2629.7,2629.6,0.00569963]
[1750069277350,33.61864406,2629.7,2629.6,0.00569963]
[1750069280352,33.55127,2629.7,2629.6,0.00569963]
[1750069281347,33.61864406,2629.7,2629.6,0.00569963]
[1750069283447,36.47790887,2629.7,2629.6,0.00569963]
[1750069285250,0.76052,2629.5,2629.4,1.06318862]
[1750069285456,27.06478481,2629.5,2629.4,1.06318862]
[1750069285755,0.76058,2629.3,2629.2,2.15091995]
[1750069285951,33.54538,2629.3,2629.2,2.15091995]
[1750069286950,10.10138,2629.3,2629.2,2.15091995]
[1750069287157,10.10138,2629.3,2629.2,5.01018476]
[1750069287453,33.54538,2629.3,2629.2,7.06413332]
[1750069287654,33.54538,2629.3,2629.2,7.68883332]
[1750069288052,33.54538,2629.3,2629.2,8.44944332]
[1750069288254,33.54538,2629.3,2629.2,7.68883332]
[1750069288752,33.54538,2629.3,2629.2,8.44944332]
[1750069289957,33.54538,2629.3,2629.2,7.68883332]
[1750069290258,33.54538,2629.3,2629.2,8.44944332]
[1750069291263,33.54538,2629.3,2629.2,7.68883332]
[1750069291658,3.96838,2629.3,2629.2,7.68883332]
[1750069291955,27.41138,2629.3,2629.2,7.68883332]
[1750069292356,27.41138,2629.3,2629.2,8.44944332]
[1750069293860,24.20358,2629.3,2629.2,8.44944332]
[1750069294751,0.76058,2629.3,2629.2,11.18407481]
[1750069296363,0.76058,2629.3,2629.2,6.18407481]
[1750069297759,0.82795406,2629.3,2629.2,6.18407481]
[1750069298262,0.82795406,2629.3,2629.2,3.32481]
[1750069298461,0.82795406,2629.3,2629.2,2.5642]
[1750069298760,0.82795406,2629.3,2629.2,3.32481]
[1750069300861,0.82795406,2629.3,2629.2,6.18407481]
[1750069305367,0.82795406,2629.3,2629.2,3.32481]
[1750069305666,4.03575406,2629.3,2629.2,1.2678]
[1750069305967,4.03575406,2629.3,2629.2,0.6431]
[1750069306163,4.03575406,2629.3,2629.2,2.9131514]
[1750069306366,4.34232295,2629.3,2629.2,2.9131514]
[1750069306563,7.20158776,2629.3,2629.2,2.2700514]
[1750069306763,0.76061,2629.2,2629.1,2.2700514]
[1750069306969,25.50261,2629.2,2629.1,2.2700514]
[1750069307175,0.76064,2629.1,2629.0,2.2700514]
[1750069307464,11.05790481,2629.1,2629.0,2.2700514]
[1750069307665,0.76067,2629.0,2628.9,2.15176796]
[1750069307865,27.40547,2629.0,2628.9,2.15176796]
[1750069308763,27.40547,2629.0,2628.9,0.6381]
[1750069308971,28.72997,2629.0,2628.9,0.6381]
[1750069310570,0.7607,2628.9,2628.8,1.51366796]
[1750069310771,2.7456,2628.9,2628.8,1.51366796]
[1750069312376,5.60486481,2628.9,2628.8,1.51366796]
[1750069312573,0.76073,2628.8,2628.7,1.51366796]
[1750069312763,24.19773,2628.8,2628.7,1.51366796]
[1750069312967,25.51643,2628.8,2628.7,1.51366796]
[1750069314871,0.76076,2628.7,2628.6,2.13926796]
[1750069315379,0.76076,2628.7,2628.6,0.6256]
[1750069315578,0.76076,2628.7,2628.6,2.13635058]
[1750069320376,0.76076,2628.7,2628.6,2.89713058]
[1750069321084,0.76076,2628.7,2628.6,2.13635058]
[1750069321381,0.76076,2628.7,2628.6,2.89713058]
[1750069323977,0.76076,2628.7,2628.6,2.13635058]
[1750069324376,0.76076,2628.7,2628.6,2.89713058]
[1750069324982,0.76076,2628.8,2628.7,0.76073]
[1750069325186,0.76076,2628.8,2628.7,5.78454539]
[1750069325480,0.76076,2628.8,2628.7,7.02154539]
[1750069327883,0.76076,2628.8,2628.7,2.16455058]
[1750069329185,0.76076,2628.8,2628.7,2.92531058]
[1750069329382,0.76076,2628.8,2628.7,2.16455058]
[1750069330181,0.76076,2628.8,2628.7,2.92531058]
[1750069330682,0.76076,2628.8,2628.7,4.19111058]
[1750069331280,0.76076,2628.8,2628.7,2.16455058]
[1750069332483,0.76076,2628.8,2628.7,2.92531058]
[1750069332684,0.76076,2628.8,2628.7,1.41456]
[1750069332883,0.76076,2628.8,2628.7,2.92551938]
[1750069333683,0.76076,2628.8,2628.7,1.41456]
[1750069334584,0.76076,2628.8,2628.7,3.6846114]
[1750069335086,0.76076,2628.8,2628.7,2.9238514]
[1750069335385,0.76076,2628.7,2628.6,3.6564114]
[1750069335679,0.76076,2628.7,2628.5,2.26956411]
[1750069335680,14.09700481,2628.7,2628.5,2.26956411]
[1750069335878,0.76081,2628.5,2628.4,2.90746411]
[1750069336276,3.62007481,2628.5,2628.4,2.26956411]
[1750069336477,0.76084,2628.4,2628.3,1.51323653]
[1750069336681,0.76084,2628.4,2628.2,0.6379]
[1750069336682,0.76087,2628.3,2628.2,1.51323653]
[1750069336883,0.7609,2628.2,2628.1,1.51323653]
[1750069337178,34.52756481,2628.2,2628.1,1.51323653]
[1750069337383,0.76093,2628.1,2628.0,1.51323653]
[1750069337673,3.96873,2628.1,2628.0,1.51323653]
[1750069338080,0.76096,2628.0,2627.9,1.51323653]
[1750069338490,0.76099,2627.9,2627.8,2.91214653]
[1750069339689,0.76098,2628.0,2627.9,0.76096]
[1750069340780,3.21349963,2628.1,2628.0,0.76096]
[1750069341085,10.09542963,2628.1,2628.0,0.76096]
[1750069341285,6.88762963,2628.1,2628.0,3.62022481]
[1750069341490,6.12669963,2628.1,2628.0,3.62022481]
[1750069341682,6.88762963,2628.1,2628.0,3.62022481]
[1750069342082,6.88762963,2628.1,2628.0,0.76096]
[1750069345791,6.88762963,2628.1,2628.0,1.89345818]
[1750069345990,6.88762963,2628.1,2628.0,0.76096]
[1750069346788,6.12669963,2628.1,2628.0,3.62022481]
[1750069347090,0.00569963,2628.1,2628.0,4.75272299]
[1750069347290,0.00569963,2628.1,2628.0,3.62022481]
[1750069347780,3.96863,2628.5,2628.4,0.76084]
[1750069347984,3.96863,2628.5,2628.4,3.62010481]
[1750069348193,3.96863,2628.5,2628.4,4.75188815]
[1750069348792,3.96863,2628.5,2628.4,1.89262334]
[1750069350889,3.2078,2628.5,2628.4,1.89262334]
[1750069351994,26.6348,2628.5,2628.4,1.89262334]
[1750069352394,27.39561,2628.5,2628.4,1.89262334]
[1750069352594,0.76081,2628.5,2628.4,1.89262334]
[1750069352784,24.18681,2628.5,2628.4,1.89262334]
[1750069354186,23.426,2628.5,2628.4,1.89262334]
[1750069354794,23.49337406,2628.5,2628.4,1.89262334]
[1750069354995,0.06737406,2628.5,2628.4,3.62010481]
[1750069355495,0.06737406,2628.5,2628.4,5.12914927]
[1750069355698,0.00569963,2628.7,2628.6,0.76078]
[1750069355891,0.00569963,2628.7,2628.6,5.12966323]
[1750069360793,0.00569963,2628.7,2628.6,6.43406323]
[1750069364887,0.00569963,2628.7,2628.6,7.09356323]
[1750069365587,0.00569963,2628.7,2628.6,5.58394481]
[1750069365792,0.00569963,2628.7,2628.6,7.85350892]
[1750069366496,0.00569963,2628.7,2628.6,5.58394481]
[1750069366701,28.12760406,2629.2,2629.1,0.76064]
[1750069367002,10.76423,2629.2,2629.1,1.89169716]
[1750069367500,12.03823,2629.2,2629.1,1.89169716]
[1750069369500,12.03823,2629.2,2629.1,0.76064]
[1750069369697,14.89749481,2629.2,2629.1,1.89169716]
[1750069369903,14.96486887,2629.2,2629.1,0.76064]
[1750069371802,10.83160406,2629.2,2629.1,1.89169716]
[1750069372507,10.83160406,2629.2,2629.1,0.76064]
[1750069372708,10.83160406,2629.2,2629.1,1.89169716]
[1750069376404,7.62380406,2629.2,2629.1,1.89169716]
[1750069376610,7.62380406,2629.2,2629.1,2.51589716]
[1750069377419,7.62380406,2629.2,2629.1,1.38484]
[1750069381514,7.62380406,2629.2,2629.1,2.89291621]
[1750069381812,10.48306887,2629.2,2629.1,1.50807621]
[1750069382010,0.76064,2629.1,2629.0,1.1332027]
[1750069382314,0.76067,2629.0,2628.9,1.1332027]
[1750069382615,0.7607,2628.9,2628.8,1.1332027]
[1750069382816,27.02496481,2628.9,2628.8,1.1332027]
[1750069383021,3.61996481,2628.9,2628.8,1.1332027]
[1750069383220,0.76073,2628.8,2628.7,2.89623621]
[1750069383920,0.76073,2628.8,2628.7,2.13547621]
[1750069386823,30.27673,2628.8,2628.7,2.13547621]
[1750069387218,31.57703,2628.8,2628.7,2.13547621]
[1750069387617,31.57703,2628.8,2628.7,1.50807621]
[1750069389624,0.76076,2628.7,2628.6,1.50807621]
[1750069389820,2.66626,2628.7,2628.6,1.50807621]
[1750069391118,2.66626,2628.7,2628.6,1.13465878]
[1750069391421,5.52552481,2628.7,2628.6,1.13465878]
[1750069391621,0.76078,2628.6,2628.5,1.13465878]
[1750069391919,28.60558,2628.6,2628.5,1.13465878]
[1750069392129,0.76087,2628.3,2628.2,1.50807621]
[1750069392322,0.76087,2628.3,2628.1,1.50807621]
[1750069392323,0.7609,2628.2,2628.1,1.50807621]
[1750069392528,1.9959,2628.2,2628.1,1.50807621]
[1750069392729,0.76093,2628.1,2628.0,2.12327621]
[1750069392929,24.16293,2628.1,2628.0,2.12327621]
[1750069394733,24.16293,2628.1,2628.0,0.6152]
[1750069399119,0.76099,2627.9,2627.8,0.00569963]
[1750069399425,30.27699,2627.9,2627.8,0.64229963]
[1750069401031,34.84149,2627.9,2627.8,0.00569963]
[1750069401727,39.84149,2627.9,2627.8,0.00569963]
[1750069402332,39.84149,2627.9,2627.8,9.63e-06]
[1750069404232,42.70075481,2627.9,2627.8,9.63e-06]
[1750069405533,39.84149,2627.9,2627.8,9.63e-06]
[1750069407029,40.22545533,2627.9,2627.8,9.63e-06]
[1750069409347,43.08472014,2627.9,2627.8,9.63e-06]
[1750069411143,40.22545533,2627.9,2627.8,9.63e-06]
[1750069412338,40.22645533,2627.9,2627.8,9.63e-06]
[1750069414542,40.21945533,2627.9,2627.8,9.63e-06]
[1750069416346,35.21945533,2627.9,2627.8,9.63e-06]
[1750069419238,3.96879,2627.9,2627.8,9.63e-06]
[1750069419442,33.47779,2627.9,2627.8,9.63e-06]
[1750069419642,36.40442887,2627.9,2627.8,9.63e-06]
[1750069419949,37.69402887,2627.9,2627.8,9.63e-06]
[1750069420848,34.76739,2627.9,2627.8,9.63e-06]
[1750069421043,8.11765481,2627.9,2627.8,9.63e-06]
[1750069421238,36.33605481,2627.9,2627.8,9.63e-06]
[1750069425145,6.82805481,2627.9,2627.8,9.63e-06]
[1750069425350,36.33405481,2627.9,2627.8,9.63e-06]
[1750069427856,36.40142887,2627.9,2627.8,9.63e-06]
[1750069428948,13.00142887,2627.9,2627.8,9.63e-06]
[1750069429259,36.40042887,2627.9,2627.8,9.63e-06]
[1750069429743,33.54116406,2627.9,2627.8,9.63e-06]
[1750069429948,36.33305481,2627.9,2627.8,9.63e-06]
[1750069431159,36.40042887,2627.9,2627.8,9.63e-06]
[1750069431955,36.33305481,2627.9,2627.8,9.63e-06]
[1750069432944,36.40042887,2627.9,2627.8,9.63e-06]
[1750069433952,36.33305481,2627.9,2627.8,9.63e-06]
[1750069434152,36.33105481,2627.9,2627.8,9.63e-06]
[1750069436154,6.82805481,2627.9,2627.8,9.63e-06]
[1750069436454,36.32205481,2627.9,2627.8,9.63e-06]
[1750069436957,36.38942887,2627.9,2627.8,9.63e-06]
[1750069437258,10.13416406,2627.9,2627.8,9.63e-06]
[1750069437556,33.52916406,2627.9,2627.8,9.63e-06]
[1750069437954,33.46179,2627.9,2627.8,9.63e-06]
[1750069441764,33.45879,2627.9,2627.8,9.63e-06]
[1750069445064,33.52616406,2627.9,2627.8,9.63e-06]
[1750069445962,10.13416406,2627.9,2627.8,9.63e-06]
[1750069446173,33.45579,2627.9,2627.8,9.63e-06]
[1750069447157,10.06679,2627.9,2627.8,9.63e-06]
[1750069447359,33.45479,2627.9,2627.8,9.63e-06]
[1750069447767,33.45479,2627.9,2627.8,1.32390963]
[1750069449262,33.52216406,2627.9,2627.8,1.32390963]
[1750069450169,33.52116406,2627.9,2627.8,1.32390963]
[1750069450372,33.52116406,2627.9,2627.8,9.63e-06]
[1750069450573,36.38042887,2627.9,2627.8,9.63e-06]
[1750069453077,33.52116406,2627.9,2627.8,9.63e-06]
[1750069453381,33.51916406,2627.9,2627.8,1.13468164]
[1750069454279,33.45179,2627.9,2627.8,1.13468164]
[1750069455681,33.45179,2627.9,2627.8,9.63e-06]
[1750069455882,33.45179,2627.9,2627.8,1.13485872]
[1750069457385,33.51916406,2627.9,2627.8,1.13485872]
[1750069458386,33.51916406,2627.9,2627.8,9.63e-06]
[1750069460784,34.78566406,2627.9,2627.8,9.63e-06]
[1750069462989,5.30266406,2627.9,2627.8,9.63e-06]
[1750069463188,33.50816406,2627.9,2627.8,1.13472909]
[1750069463491,33.44079,2627.9,2627.8,1.13472909]
[1750069465486,33.44079,2627.9,2627.8,9.63e-06]
[1750069465688,33.44079,2627.9,2627.8,1.13569257]
[1750069466790,33.44079,2627.9,2627.8,9.63e-06]
[1750069468489,33.50816406,2627.9,2627.8,9.63e-06]
[1750069469484,10.12616406,2627.9,2627.8,9.63e-06]
[1750069469685,33.50416406,2627.9,2627.8,1.50737388]
[1750069469883,10.12616406,2627.9,2627.8,1.50737388]
[1750069470084,33.50416406,2627.9,2627.8,1.50737388]
[1750069470594,33.43679,2627.9,2627.8,1.50737388]
[1750069472892,33.43679,2627.9,2627.8,9.63e-06]
[1750069473294,6.85099,2627.9,2627.8,2.26212395]
[1750069473595,30.22799,2627.9,2627.8,2.26212395]
[1750069474092,0.06737406,2628.0,2627.8,2.26212395]
[1750069474300,10.60569963,2629.4,2627.9,5.71852962]
[1750069474301,3.2078,2628.5,2627.9,5.71852962]
[1750069474594,3.96861,2628.5,2628.4,2.85926481]
[1750069474993,3.96861,2628.5,2628.4,5.43096481]
[1750069475396,3.96861,2628.5,2628.4,2.5717]
[1750069475692,3.96861,2628.5,2628.4,1.2921]
[1750069475898,0.76087,2628.3,2628.2,1.51192168]
[1750069476196,0.7609,2628.2,2628.1,1.51192168]
[1750069476494,3.9687,2628.2,2628.1,1.51192168]
[1750069477294,0.7609,2628.2,2628.1,0.76093]
[1750069477496,0.7609,2628.2,2628.1,3.03081652]
[1750069477897,24.1329,2628.2,2628.1,3.03081652]
[1750069478299,24.1329,2628.2,2628.1,2.08163]
[1750069479293,0.7609,2628.2,2628.1,2.08163]
[1750069480499,0.7609,2628.2,2628.1,3.59142775]
[1750069481699,0.7609,2628.2,2628.1,2.27072775]
[1750069483099,24.1319,2628.3,2628.2,0.7609]
[1750069483295,0.7609,2628.3,2628.2,2.27069775]
[1750069483491,0.7609,2628.3,2628.2,3.52579775]
[1750069484189,0.76086,2628.4,2628.3,0.76084]
[1750069484394,0.76086,2628.4,2628.3,3.14699446]
[1750069484598,27.33664,2628.5,2628.4,0.76084]
[1750069484998,27.33664,2628.5,2628.4,1.89189446]
[1750069485894,3.96864,2628.5,2628.4,1.89189446]
[1750069486096,3.2078,2628.8,2628.4,4.4611]
[1750069486297,3.96855,2628.8,2628.6,1.13104475]
[1750069486498,3.96855,2628.8,2628.7,4.75106956]
[1750069487604,3.96855,2628.8,2628.7,3.62002481]
[1750069487995,3.2078,2628.8,2628.7,4.75106956]
[1750069488194,3.2078,2628.8,2628.7,6.00436956]
[1750069489803,3.96853,2628.8,2628.7,6.00436956]
[1750069490305,3.2078,2628.8,2628.7,4.87332481]
[1750069492003,6.089,2629.0,2628.9,0.7607]
[1750069492205,6.089,2629.0,2628.9,4.74926373]
[1750069493295,6.84967,2629.0,2628.9,1.88999892]
[1750069493495,6.84967,2629.0,2628.9,0.7607]
[1750069494204,6.84967,2629.0,2628.9,0.6312]
[1750069494406,8.09267,2629.0,2628.9,0.6312]
[1750069494597,8.09267,2629.0,2628.9,1.3919]
[1750069496101,8.09267,2629.0,2628.9,0.7607]
[1750069498215,8.09267,2629.0,2628.2,1.13009696]
[1750069498216,18.99467481,2629.0,2628.2,1.13009696]
[1750069498506,0.76099,2627.9,2627.4,2.57041]
[1750069498701,0.76099,2627.9,2627.7,2.85926481]
[1750069499002,30.19799,2627.9,2627.7,2.85926481]
[1750069499205,0.76098,2628.0,2627.7,2.85926481]
[1750069499508,24.11796,2628.0,2627.9,2.85926481]
[1750069499807,24.11796,2628.0,2627.9,3.49056481]
[1750069500209,24.11796,2628.0,2627.9,0.6313]
[1750069502604,0.76096,2628.0,2627.9,3.49056481]
[1750069502811,0.76096,2628.0,2627.9,4.25155481]
[1750069505005,0.76096,2628.0,2627.9,1.39229]
[1750069506807,23.008,2628.5,2628.2,0.76087]
[1750069507011,23.008,2628.5,2628.3,0.6739]
[1750069507012,24.12184,2628.4,2628.3,0.6739]
[1750069508313,0.76087,2628.3,2628.2,0.7609]
[1750069508613,4.63247,2628.3,2628.2,0.7609]
[1750069513112,1.42467,2628.3,2628.2,0.7609]
[1750069513715,24.12086,2628.4,2628.3,0.76087]
[1750069514521,0.76086,2628.4,2628.3,0.76087]
[1750069514714,24.12086,2628.4,2628.3,0.76087]
[1750069515920,24.11986,2628.4,2628.3,0.76087]
[1750069517324,0.76086,2628.4,2628.3,0.76087]
[1750069517722,24.11986,2628.4,2628.3,0.76087]
[1750069518625,0.76086,2628.4,2628.3,0.76087]
[1750069524636,0.76086,2628.4,2628.3,0.76087]
[1750069529442,0.76086,2628.4,2628.3,2.27306893]
[1750069531143,0.76087,2628.3,2628.2,2.27308893]
[1750069534246,0.76087,2628.3,2628.2,0.76089]
[1750069536042,0.76087,2628.3,2628.2,3.02289592]